Workbook

Sheet Eescalation
A2: Appendix A
A3: Vegitation Managemant Contract
A7: BASE DATE :Jan 2023
A10: Ref | B10: Description - Component | C10: SEIFSA | D10: Component size | E10: Base index Jan 2021 | F10: Final index Jan 2022 | G10: Gross Adustment | H10: Net adjustment
C11: Table
B13: FORMULA No.1 Base Date Jan 2023
A19: 1 | B19: Non-adjustable (Fixed Portion) | C19: N/A | D19: 0.10
A21: 2 | B21: Components | C21: Seifsa D | D21: 0.90 | E21: 94.80 | F21: 107.90 | G21: =D21*(F21/E21) -> 1.02 | H21: =G21-D21 -> 0.12
B25: Net Adjustment Total | D25: =SUM(D19:D23) -> 1.00 | H25: =SUM(H19:H23) -> 0.12

Sheet BOQ (3) (hidden)
A3: Part 1: Standard Activity Schedule for Vegetation Management Services
A5: Vegetation Management MOU | D5: RATES | E5: CPI Table D SEIFSA | F5: Projected @ 3%to 2021/22 | G5: CPI Table D SEIFSA | H5: Projected @ 3% to 2022/23 | I5: CPI Table D SEIFSA | J5: Projected @ 3% to 2023/24 | K5: ESCALATION | L5: 2023 RATES
A6: No | B6: Description | C6: Unit | D6: ESKOM | E6: Escalation | F6: New Rates | G6: Escalation | H6: New Rates | I6: Escalation | J6: New Rates | L6: ESKOM
A7: A1 | B7: Vegetation Biomes (Cycle1)
A8: 1 | B8: Albany Thicket | C8: m² | D8: =0.51 -> R 0.51 | E8: =D8*Escalation!C7 -> R 0.02 | F8: =D8+E8 -> R 0.53 | G8: =F8*Escalation!C8 -> R 0.02 | H8: =F8+G8 -> R 0.54 | I8: =H8*Escalation!C9 -> R 0.00 | J8: =H8+I8 -> R 0.54 | K8: 0.08 | L8: =0.51+K8 -> R 0.59
A9: 2 | B9: Desert | C9: m² | D9: R 0.63 | E9: =D9*Escalation!C7 -> R 0.02 | F9: R 0.65 | G9: =F9*Escalation!C8 -> R 0.02 | H9: =F9+G9 -> R 0.67 | I9: =H9*Escalation!C9 -> R 0.00 | J9: =H9+I9 -> R 0.67 | K9: 0.08 | L9: =0.63+K9 -> R 0.71
A10: 3 | B10: Forest | C10: m² | D10: R 0.66 | E10: =D10*Escalation!C7 -> R 0.02 | F10: R 0.68 | G10: =F10*Escalation!C8 -> R 0.02 | H10: R 0.70 | I10: =H10*Escalation!C9 -> R 0.00 | J10: R 0.70 | K10: 0.08 | L10: =0.66+K10 -> R 0.74
A11: 4 | B11: Grassland | C11: m² | D11: R 0.19 | E11: =D11*Escalation!C7 -> R 0.01 | F11: R 0.20 | G11: =F11*Escalation!C8 -> R 0.01 | H11: R 0.20 | I11: =H11*Escalation!C9 -> R 0.00 | J11: R 0.20 | K11: 0.08 | L11: =0.19+K11 -> R 0.27
A12: 5 | B12: Savanna | C12: m² | D12: R 0.51 | E12: =D12*Escalation!C7 -> R 0.02 | F12: R 0.53 | G12: =F12*Escalation!C8 -> R 0.02 | H12: R 0.54 | I12: =H12*Escalation!C9 -> R 0.00 | J12: R 0.54 | K12: 0.08 | L12: =0.51+K12 -> R 0.59
A13: 6 | B13: Reeds Cut and stacking | C13: m² | D13: R 1.27 | E13: =D13*Escalation!C7 -> R 0.04 | F13: R 1.31 | G13: =F13*Escalation!C8 -> R 0.04 | H13: R 1.35 | I13: =H13*Escalation!C9 -> R 0.00 | J13: R 1.35 | K13: 0.08 | L13: =1.27+K13 -> R 1.35
A14: 7 | B14: Reeds Cut and removal | C14: m² | D14: R 3.20 | E14: =D14*Escalation!C7 -> R 0.10 | F14: R 3.30 | G14: =F14*Escalation!C8 -> R 0.10 | H14: R 3.39 | I14: =H14*Escalation!C9 -> R 0.00 | J14: R 3.39 | K14: 0.08 | L14: =3.2+K14 -> R 3.28
A15: 8 | B15: Herbicide Application( Substations only) | C15: m² | D15: R 1.25 | E15: =D15*Escalation!C7 -> R 0.04 | F15: R 1.29 | G15: =F15*Escalation!C8 -> R 0.04 | H15: R 1.33 | I15: =H15*Escalation!C9 -> R 0.00 | J15: R 1.33 | K15: 0.08 | L15: R 1.25
A16: 9 | B16: Substation Grass Cutting | C16: m² | D16: R 0.48 | E16: =D16*Escalation!C7 -> R 0.01 | F16: R 0.49 | G16: =F16*Escalation!C8 -> R 0.01 | H16: R 0.51 | I16: =H16*Escalation!C9 -> R 0.00 | J16: R 0.51 | K16: 0.08 | L16: =0.48+K16 -> R 0.56
A17: 10 | B17: Fynbos | C17: m² | D17: R 0.32 | E17: =D17*Escalation!C7 -> R 0.01 | F17: R 0.33 | G17: =F17*Escalation!C8 -> R 0.01 | H17: R 0.34 | I17: =H17*Escalation!C9 -> R 0.00 | J17: R 0.34 | K17: 0.08 | L17: =0.32+K17 -> R 0.40
A18: 11 | B18: Indian Ocean costal belt | C18: m² | D18: R 0.32 | E18: =D18*Escalation!C7 -> R 0.01 | F18: R 0.33 | G18: =F18*Escalation!C8 -> R 0.01 | H18: R 0.34 | I18: =H18*Escalation!C9 -> R 0.00 | J18: R 0.34 | K18: 0.08 | L18: =0.32+K18 -> R 0.40
A19: 12 | B19: Nama-Karoo | C19: m² | D19: R 0.23 | E19: =D19*Escalation!C7 -> R 0.01 | F19: R 0.24 | G19: =F19*Escalation!C8 -> R 0.01 | H19: R 0.24 | I19: =H19*Escalation!C9 -> R 0.00 | J19: R 0.24 | K19: 0.08 | L19: =0.23+K19 -> R 0.31
A20: 13 | B20: Succulent Karoo | C20: m² | D20: R 0.23 | E20: =D20*Escalation!C7 -> R 0.01 | F20: R 0.24 | G20: =F20*Escalation!C8 -> R 0.01 | H20: R 0.24 | I20: =H20*Escalation!C9 -> R 0.00 | J20: R 0.24 | K20: 0.08 | L20: =0.23+K20 -> R 0.31
A21: 14 | B21: Pure Grass Cutting(Lines) | C21: m² | D21: R 0.14 | E21: =D21*Escalation!C8 -> R 0.00 | F21: R 0.14 | G21: =F21*Escalation!C9 -> R 0.00 | H21: R 0.14 | I21: =H21*Escalation!C10 -> R 0.00 | J21: R 0.14 | K21: 0.08 | L21: =0.14+K21 -> R 0.22
A22: 15 | B22: Pure Grass Removal | C22: m2 | D22: R 0.11 | E22: =D22*Escalation!C8 -> R 0.00 | F22: R 0.11 | G22: =F22*Escalation!C8 -> R 0.00 | H22: R 0.12 | I22: =H22*Escalation!C9 -> R 0.00 | J22: R 0.12 | K22: 0.08 | L22: =0.11+K22 -> R 0.19
A23: 16 | B23: Substation Weeding | C23: m2 | D23: R 0.30 | E23: =D23*Escalation!C9 -> R 0.00 | F23: R 0.30 | G23: =F23*Escalation!C8 -> R 0.01 | H23: R 0.31 | I23: =H23*Escalation!C9 -> R 0.00 | J23: R 0.31 | K23: 0.08 | L23: =0.3+K23 -> R 0.38
A24: 17 | B24: Reeds cut and removal | C24: m2 | D24: R 2.60 | E24: =D24*Escalation!C10 -> R 0.00 | F24: R 2.60 | G24: =F24*Escalation!C8 -> R 0.08 | H24: R 2.68 | I24: =H24*Escalation!C9 -> R 0.00 | J24: R 2.68 | K24: 0.08 | L24: =2.6+K24 -> R 2.68
A25: A2 | B25: Vegetation Biomes (Cycle2)
A26: 1 | B26: Albany Thicket | C26: m² | D26: R 0.32 | E26: =D26*Escalation!C7 -> R 0.01 | F26: =D26+E26 -> R 0.33 | G26: =F26*Escalation!C8 -> R 0.01 | H26: =F26+G26 -> R 0.34 | I26: =H26*Escalation!C9 -> R 0.00 | J26: =H26+I26 -> R 0.34 | K26: 0.08 | L26: =0.32+K26 -> R 0.40
A27: 2 | B27: Desert | C27: m² | D27: R 0.12 | E27: =D27*Escalation!C7 -> R 0.00 | F27: R 0.12 | G27: =F27*Escalation!C8 -> R 0.00 | H27: R 0.13 | I27: =H27*Escalation!C9 -> R 0.00 | J27: R 0.13 | K27: 0.08 | L27: =D27+K27 -> R 0.20
A28: 3 | B28: Forest | C28: m² | D28: R 0.45 | E28: =D28*Escalation!C7 -> R 0.01 | F28: R 0.46 | G28: =F28*Escalation!C8 -> R 0.01 | H28: R 0.48 | I28: =H28*Escalation!C9 -> R 0.00 | J28: R 0.48 | K28: 0.08 | L28: =0.45+K28 -> R 0.53
A29: 4 | B29: Grassland | C29: m² | D29: R 0.12 | E29: =D29*Escalation!C7 -> R 0.00 | F29: R 0.12 | G29: =F29*Escalation!C8 -> R 0.00 | H29: R 0.13 | I29: =H29*Escalation!C9 -> R 0.00 | J29: R 0.13 | K29: 0.08 | L29: =0.12 -> R 0.12
A30: 5 | B30: Savanna | C30: m² | D30: R 0.26 | E30: =D30*Escalation!C7 -> R 0.01 | F30: R 0.27 | G30: =F30*Escalation!C8 -> R 0.01 | H30: R 0.28 | I30: =H30*Escalation!C9 -> R 0.00 | J30: R 0.28 | K30: 0.08 | L30: =0.26+K30 -> R 0.34
A31: 6 | B31: Reeds Cut and stacking | C31: m² | D31: R 0.66 | E31: =D31*Escalation!C7 -> R 0.02 | F31: R 0.68 | G31: =F31*Escalation!C8 -> R 0.02 | H31: R 0.70 | I31: =H31*Escalation!C9 -> R 0.00 | J31: R 0.70 | K31: 0.08 | L31: =0.66+K31 -> R 0.74
A32: 7 | B32: Reeds Cut and removal | C32: m² | D32: R 1.25 | E32: =D32*Escalation!C7 -> R 0.04 | F32: R 1.29 | G32: =F32*Escalation!C8 -> R 0.04 | H32: R 1.33 | I32: =H32*Escalation!C9 -> R 0.00 | J32: R 1.33 | K32: 0.08 | L32: =1.25+K32 -> R 1.33
A33: 8 | B33: Herbicide Application( Substations only) | C33: m² | D33: R 1.25 | E33: =D33*Escalation!C7 -> R 0.04 | F33: R 1.29 | G33: =F33*Escalation!C8 -> R 0.04 | H33: R 1.33 | I33: =H33*Escalation!C9 -> R 0.00 | J33: R 1.33 | K33: 0.08 | L33: =1.25+K33 -> R 1.33
A34: 9 | B34: Substation Grass Cutting | C34: m² | D34: R 0.48 | E34: =D34*Escalation!C7 -> R 0.01 | F34: R 0.49 | G34: =F34*Escalation!C8 -> R 0.01 | H34: R 0.51 | I34: =H34*Escalation!C9 -> R 0.00 | J34: R 0.51 | K34: 0.08 | L34: R 0.48
A35: 10 | B35: Fynbos | C35: m² | D35: R 0.24 | E35: =D35*Escalation!C8 -> R 0.01 | F35: R 0.25 | G35: =F35*Escalation!C9 -> R 0.00 | H35: R 0.25 | I35: =H35*Escalation!C10 -> R 0.00 | J35: R 0.25 | K35: 0.08 | L35: =0.24+K35 -> R 0.32
A36: 11 | B36: Indian Ocean costal belt | C36: m² | D36: R 0.23 | E36: =D36*Escalation!C9 -> R 0.00 | F36: R 0.23 | G36: =F36*Escalation!C10 -> R 0.00 | H36: R 0.23 | I36: =H36*Escalation!C11 -> R 0.00 | J36: R 0.23 | K36: 0.08 | L36: =0.23+K36 -> R 0.31
A37: 12 | B37: Nama-Karoo | C37: m² | D37: R 0.12 | E37: =D37*Escalation!C10 -> R 0.00 | F37: R 0.12 | G37: =F37*Escalation!C11 -> R 0.00 | H37: R 0.12 | I37: =H37*Escalation!C12 -> R 0.00 | J37: R 0.12 | K37: 0.08 | L37: =0.12+K37 -> R 0.20
A38: 13 | B38: Succulent Karoo | C38: m² | D38: R 0.12 | E38: =D38*Escalation!C11 -> R 0.00 | F38: R 0.12 | G38: =F38*Escalation!C12 -> R 0.00 | H38: R 0.12 | I38: =H38*Escalation!C13 -> R 0.00 | J38: R 0.12 | K38: 0.08 | L38: =0.12+K38 -> R 0.20
A39: 14 | B39: Pure Grass Cutting(Lines) | C39: m² | D39: R 0.14 | E39: =D39*Escalation!C12 -> R 0.00 | F39: R 0.14 | G39: =F39*Escalation!C13 -> R 0.00 | H39: R 0.14 | I39: =H39*Escalation!C14 -> R 0.00 | J39: R 0.14 | K39: 0.08 | L39: =0.14+K39 -> R 0.22
A40: 15 | B40: Pure Grass Removal | C40: m² | D40: R 0.11 | E40: =D40*Escalation!C13 -> R 0.00 | F40: R 0.11 | G40: =F40*Escalation!C14 -> R 0.00 | H40: R 0.11 | I40: =H40*Escalation!C15 -> R 0.00 | J40: R 0.11 | K40: 0.08 | L40: =0.11+K40 -> R 0.19
A41: 16 | B41: Substation Weeding | C41: m² | D41: R 0.30 | E41: =D41*Escalation!C14 -> R 0.00 | F41: R 0.30 | G41: =F41*Escalation!C15 -> R 0.00 | H41: R 0.30 | I41: =H41*Escalation!C16 -> R 0.00 | J41: R 0.30 | K41: 0.08 | L41: =0.3+K41 -> R 0.38
A42: 17 | B42: Controlled burning | C42: m² | D42: R 0.32 | E42: =D42*Escalation!C7 -> R 0.01 | F42: =D42+E42 -> R 0.33 | G42: =F42*Escalation!C8 -> R 0.01 | H42: R 0.34 | I42: =H42*Escalation!C9 -> R 0.00 | J42: R 0.34 | K42: 0.08 | L42: =0.32+K42 -> R 0.40
A43: A3 | B43: Vegetation Biomes (Cycle3)
A44: 1 | B44: Herbicides application( Lines) | C44: m2 | D44: R 0.33 | E44: =D44*Escalation!C7 -> R 0.01 | F44: =D44+E44 -> R 0.34 | G44: =F44*Escalation!C8 -> R 0.01 | H44: =F44+G44 -> R 0.35 | I44: =H44*Escalation!C9 -> R 0.00 | J44: =H44+I44 -> R 0.35 | K44: 0.08 | L44: =0.33+K44 -> R 0.41
A45: B | B45: Modifiers
A46: 1 | B46: Single tree Event >400mm | C46: Each | D46: R 2,008.76 | E46: =D46*Escalation!C7 -> R 60.26 | F46: =D46+E46 -> R 2,069.02 | G46: =F46*Escalation!C8 -> R 62.07 | H46: =F46+G46 -> R 2,131.09 | I46: =H46*Escalation!C9 -> R 0.00 | J46: =H46+I46 -> R 2,131.09 | K46: 0.08 | L46: =2008.76+K46 -> R 2,008.84
A47: 2 | B47: Call Out for Fallen Tree >400mm (Monday - Sat) R2001.50 x 1.5 | C47: Each | D47: R 3,012.36 | E47: =D47*Escalation!C7 -> R 90.37 | F47: R 3,102.73 | G47: =F47*Escalation!C8 -> R 93.08 | H47: R 3,195.81 | I47: =H47*Escalation!C9 -> R 0.00 | J47: R 3,195.81 | K47: 0.08 | L47: =3012.36+K47 -> R 3,012.44
A48: 3 | B48: Call Out for Fallen Tree >400mm (Sunday + Public Holiday) R2400.50 X 2 | C48: Each | D48: R 4,017.52 | E48: =D48*Escalation!C7 -> R 120.53 | F48: R 4,138.05 | G48: =F48*Escalation!C8 -> R 124.14 | H48: R 4,262.19 | I48: =H48*Escalation!C9 -> R 0.00 | J48: R 4,262.19 | K48: 0.08 | L48: =4017.52+K48 -> R 4,017.60
A49: 4 | B49: Single tree Event 100mm diameter up to 400mm. | C49: Each | D49: R 251.10 | E49: =D49*Escalation!C7 -> R 7.53 | F49: R 258.63 | G49: =F49*Escalation!C8 -> R 7.76 | H49: R 266.39 | I49: =H49*Escalation!C9 -> R 0.00 | J49: R 266.39 | K49: 0.08 | L49: =251.1+K49 -> R 251.18
A50: 5 | B50: Call Out for Fallen Tree 100mm diameter up to 400mm (Monday - Sat) | C50: Each | D50: R 3,012.36 | E50: =D50*Escalation!C7 -> R 90.37 | F50: R 3,102.73 | G50: =F50*Escalation!C8 -> R 93.08 | H50: R 3,195.81 | I50: =H50*Escalation!C9 -> R 0.00 | J50: R 3,195.81 | K50: 0.08 | L50: =3012.36+K50 -> R 3,012.44
A51: 6 | B51: Call Out for Fallen Tree 100mm diameter up to 400mm (Sunday + Public Holiday) | C51: Each | D51: R 4,017.52 | E51: =D51*Escalation!C7 -> R 120.53 | F51: R 4,138.05 | G51: =F51*Escalation!C8 -> R 124.14 | H51: R 4,262.19 | I51: =H51*Escalation!C9 -> R 0.00 | J51: R 4,262.19 | K51: 0.08 | L51: =4017.52+K51 -> R 4,017.60
A52: 7 | B52: Hedges | C52: m² | D52: R 18.11 | E52: =D52*Escalation!C7 -> R 0.54 | F52: R 18.65 | G52: =F52*Escalation!C8 -> R 0.56 | H52: R 19.21 | I52: =H52*Escalation!C9 -> R 0.00 | J52: R 19.21 | K52: 0.08 | L52: =18.11+K52 -> R 18.19
A53: 8 | B53: Fruit Trees (orchards) Trimming | C53: m² | D53: R 1.33 | E53: =D53*Escalation!C7 -> R 0.04 | F53: R 1.37 | G53: =F53*Escalation!C8 -> R 0.04 | H53: R 1.41 | I53: =H53*Escalation!C9 -> R 0.00 | J53: R 1.41 | K53: 0.08 | L53: =1.33+K53 -> R 1.41
A54: 9 | B54: Trimming trees in Town & Wind Breaks | C54: Each | D54: R 223.02 | E54: =D54*Escalation!C7 -> R 6.69 | F54: R 229.71 | G54: =F54*Escalation!C8 -> R 6.89 | H54: R 236.60 | I54: =H54*Escalation!C9 -> R 0.00 | J54: R 236.60 | K54: 0.08 | L54: =223.02+K54 -> R 223.10
A55: 10 | B55: Invader species Modifier | C55: m² | D55: R 0.34 | E55: =D55*Escalation!C7 -> R 0.01 | F55: R 0.35 | G55: =F55*Escalation!C8 -> R 0.01 | H55: R 0.36 | I55: =H55*Escalation!C9 -> R 0.00 | J55: R 0.36 | K55: 0.08 | L55: =0.34+K55 -> R 0.42
A56: 11 | B56: Standing Time Per Hour per member after the first hour waiting for Eskom | C56: Hour | D56: R 94.16 | K56: 0.08 | L56: =94.16+K56 -> R 94.24
A57: C | B57: Occcupational Health and Safety Requirements (32-136) -Inclusive of COVID-19 | C57: 5% | D57: R0.05 % sum of invoice | L57: R0.05 % sum of invoice
A58: C1 | B58: Personal Protective Equipment appropriate to the task to be performed shall be provided by the Principal Contractor. | C58: 2% | D58: R0.02% sum of invoice | L58: R0.02 % sum of invoice

Sheet BOQ (2)
A3: Part 1: Standard Activity Schedule for Vegetation Management Services
A5: Vegetation Management Services on Eskom Transmission North East Grid Power Lines and HV Plant Substations | G5: RATES | H5: CPI Table D SEIFSA | I5: Projected @ 3%to 2021/22 | J5: CPI Table D SEIFSA | K5: Projected @ 3% to 2022/23 | L5: CPI Table D SEIFSA | M5: Projected @ 3% to 2023/24
A6: No | B6: Description | C6: Unit | D6: 2020/2021 | E6: 2023-01-01 | F6: Escalation | G6: 2023-04-01 | H6: Escalation | I6: New Rates | J6: Escalation | K6: New Rates | L6: Escalation | M6: New Rates
A7: A1 | B7: Vegetation Biomes (Cycle1)
A8: 1 | B8: Albany Thicket | C8: m² | D8: R 0.51 | E8: 0.59 | F8: =D8*0.12 -> 0.06 | G8: =D8+F8 -> R 0.57 | H8: =G8*Escalation!C7 -> R 0.02 | I8: =G8+H8 -> R 0.59 | J8: =I8*Escalation!C8 -> R 0.02 | K8: =I8+J8 -> R 0.61 | L8: =K8*Escalation!C9 -> R 0.00 | M8: =K8+L8 -> R 0.61
A9: =A8+1 -> 2 | B9: Desert | C9: m² | D9: R 0.63 | E9: 0.71 | F9: =D9*0.12 -> 0.08 | G9: =D9+F9 -> R 0.71 | H9: =G9*Escalation!C7 -> R 0.02 | I9: R 0.73 | J9: =I9*Escalation!C8 -> R 0.02 | K9: =I9+J9 -> R 0.75 | L9: =K9*Escalation!C9 -> R 0.00 | M9: =K9+L9 -> R 0.75
A10: =A9+1 -> 3 | B10: Forest | C10: m² | D10: R 0.66 | E10: 0.74 | F10: 0.08 | G10: R 0.74 | H10: =G10*Escalation!C7 -> R 0.02 | I10: R 0.76 | J10: =I10*Escalation!C8 -> R 0.02 | K10: R 0.78 | L10: =K10*Escalation!C9 -> R 0.00 | M10: R 0.78
A11: 4 | B11: Grassland | C11: m² | D11: R 0.19 | E11: 0.27 | F11: 0.02 | G11: R 0.21 | H11: =G11*Escalation!C7 -> R 0.01 | I11: R 0.22 | J11: =I11*Escalation!C8 -> R 0.01 | K11: R 0.23 | L11: =K11*Escalation!C9 -> R 0.00 | M11: R 0.23
A12: 5 | B12: Savanna | C12: m² | D12: 0.51 | E12: 0.59 | F12: 0.06 | G12: R 0.57 | H12: =G12*Escalation!C7 -> R 0.02 | I12: R 0.59 | J12: =I12*Escalation!C8 -> R 0.02 | K12: R 0.61 | L12: =K12*Escalation!C9 -> R 0.00 | M12: R 0.61
A13: 6 | B13: Reeds Cut and stacking | C13: m² | D13: R 1.27 | E13: 1.35 | F13: 0.15 | G13: R 1.42 | H13: =G13*Escalation!C7 -> R 0.04 | I13: R 1.47 | J13: =I13*Escalation!C8 -> R 0.04 | K13: R 1.51 | L13: =K13*Escalation!C9 -> R 0.00 | M13: R 1.51
A14: 7 | B14: Herbicide Application( Substations only) | C14: m² | D14: R 3.64 | E14: 4.08 | F14: =D14*0.12 -> 0.44 | G14: =D14+F14 -> R 4.08 | H14: =G14*Escalation!C7 -> R 0.12 | I14: R 4.20 | J14: =I14*Escalation!C8 -> R 0.13 | K14: R 4.33 | L14: =K14*Escalation!C9 -> R 0.00 | M14: R 4.33
A15: 8 | B15: Substation Grass Cutting | C15: m² | D15: R 0.48 | E15: 1.25 | F15: 0.06 | G15: R 0.54 | H15: =G15*Escalation!C7 -> R 0.02 | I15: R 0.55 | J15: =I15*Escalation!C8 -> R 0.02 | K15: R 0.57 | L15: =K15*Escalation!C9 -> R 0.00 | M15: R 0.57
A16: 9 | B16: Fynbos | C16: m² | D16: R 0.32 | E16: 0.56 | F16: 0.04 | G16: R 0.36 | H16: =G16*Escalation!C7 -> R 0.01 | I16: R 0.37 | J16: =I16*Escalation!C8 -> R 0.01 | K16: R 0.38 | L16: =K16*Escalation!C9 -> R 0.00 | M16: R 0.38
A17: 10 | B17: Indian Ocean costal belt | C17: m² | D17: R 0.32 | E17: 0.4 | F17: 0.04 | G17: R 0.36 | H17: =G17*Escalation!C7 -> R 0.01 | I17: R 0.37 | J17: =I17*Escalation!C8 -> R 0.01 | K17: R 0.38 | L17: =K17*Escalation!C9 -> R 0.00 | M17: R 0.38
A18: 11 | B18: Nama-Karoo | C18: m² | D18: R 0.23 | E18: 0.4 | F18: 0.03 | G18: R 0.26 | H18: =G18*Escalation!C7 -> R 0.01 | I18: R 0.27 | J18: =I18*Escalation!C8 -> R 0.01 | K18: R 0.27 | L18: =K18*Escalation!C9 -> R 0.00 | M18: R 0.27
A19: 12 | B19: Succulent Karoo | C19: m² | D19: R 0.23 | E19: 0.31 | F19: 0.03 | G19: R 0.26 | H19: =G19*Escalation!C7 -> R 0.01 | I19: R 0.27 | J19: =I19*Escalation!C8 -> R 0.01 | K19: R 0.27 | L19: =K19*Escalation!C9 -> R 0.00 | M19: R 0.27
A20: 13 | B20: Pure Grass Cutting(Lines) | C20: m² | D20: R 0.14 | E20: 0.31 | F20: 0.02 | G20: R 0.16 | H20: =G20*Escalation!C8 -> R 0.00 | I20: =G20+H20 -> R 0.16 | J20: =I20*Escalation!C9 -> R 0.00 | K20: =I20+J20 -> R 0.16 | L20: =K20*Escalation!C10 -> R 0.00 | M20: =K20+L20 -> R 0.16
A21: 14 | B21: Pure Grass Removal | C21: m2 | D21: R 0.11 | E21: 0.22 | F21: 0.01 | G21: R 0.12 | H21: =G21*Escalation!C8 -> R 0.00 | I21: R 0.13 | J21: =I21*Escalation!C8 -> R 0.00 | K21: R 0.13 | L21: =K21*Escalation!C9 -> R 0.00 | M21: R 0.13
A22: 15 | B22: Substation Weeding | C22: m2 | D22: R 0.30 | E22: 0.19 | F22: 0.04 | G22: R 0.34 | H22: =G22*Escalation!C9 -> R 0.00 | I22: R 0.34 | J22: =I22*Escalation!C8 -> R 0.01 | K22: R 0.35 | L22: =K22*Escalation!C9 -> R 0.00 | M22: R 0.35
A23: 16 | B23: Reeds cut and removal | C23: m2 | D23: 3.2 | E23: 0.38 | F23: 0.38 | G23: R 3.58 | H23: =G23*Escalation!C10 -> R 0.00 | I23: R 3.58 | J23: =I23*Escalation!C8 -> R 0.11 | K23: R 3.69 | L23: =K23*Escalation!C9 -> R 0.00 | M23: R 3.69
A24: 17 | B24: Removal of bush clearing | C24: m2 | D24: 3.2 | E24: 3.68 | F24: 0.38 | G24: R 3.58
A25: A2 | B25: Vegetation Biomes (Cycle2)
A26: 1 | B26: Albany Thicket | C26: m² | D26: R 0.32 | E26: 0.4 | F26: 0.04 | G26: R 0.36 | H26: =G26*Escalation!C7 -> R 0.01 | I26: =G26+H26 -> R 0.37 | J26: =I26*Escalation!C8 -> R 0.01 | K26: =I26+J26 -> R 0.38 | L26: =K26*Escalation!C9 -> R 0.00 | M26: =K26+L26 -> R 0.38
A27: 2 | B27: Desert | C27: m² | D27: R 0.12 | E27: 0.2 | F27: 0.01 | G27: R 0.13 | H27: =G27*Escalation!C7 -> R 0.00 | I27: R 0.14 | J27: =I27*Escalation!C8 -> R 0.00 | K27: R 0.14 | L27: =K27*Escalation!C9 -> R 0.00 | M27: R 0.14
A28: 3 | B28: Forest | C28: m² | D28: R 0.45 | E28: 0.53 | F28: 0.05 | G28: R 0.50 | H28: =G28*Escalation!C7 -> R 0.02 | I28: R 0.52 | J28: =I28*Escalation!C8 -> R 0.02 | K28: R 0.53 | L28: =K28*Escalation!C9 -> R 0.00 | M28: R 0.53
A29: 4 | B29: Grassland | C29: m² | D29: R 0.12 | E29: 0.12 | F29: 0.01 | G29: R 0.13 | H29: =G29*Escalation!C7 -> R 0.00 | I29: R 0.14 | J29: =I29*Escalation!C8 -> R 0.00 | K29: R 0.14 | L29: =K29*Escalation!C9 -> R 0.00 | M29: R 0.14
A30: 5 | B30: Savanna | C30: m² | D30: R 0.26 | E30: 0.34 | F30: 0.03 | G30: R 0.29 | H30: =G30*Escalation!C7 -> R 0.01 | I30: R 0.30 | J30: =I30*Escalation!C8 -> R 0.01 | K30: R 0.31 | L30: =K30*Escalation!C9 -> R 0.00 | M30: R 0.31
A31: 6 | B31: Reeds Cut and stacking | C31: m² | D31: R 0.66 | E31: 0.74 | F31: 0.08 | G31: R 0.74 | H31: =G31*Escalation!C7 -> R 0.02 | I31: R 0.76 | J31: =I31*Escalation!C8 -> R 0.02 | K31: R 0.78 | L31: =K31*Escalation!C9 -> R 0.00 | M31: R 0.78
A32: 7 | B32: Reeds Cut and removal | C32: m² | D32: R 1.25 | E32: 1.33 | F32: 0.15 | G32: R 1.40 | H32: =G32*Escalation!C7 -> R 0.04 | I32: R 1.44 | J32: =I32*Escalation!C8 -> R 0.04 | K32: R 1.49 | L32: =K32*Escalation!C9 -> R 0.00 | M32: R 1.49
A33: 8 | B33: Herbicide Application( Substations only) | C33: m² | D33: R 3.64 | E33: 1.33 | F33: 0.44 | G33: R 4.08 | H33: =G33*Escalation!C7 -> R 0.12 | I33: R 4.20 | J33: =I33*Escalation!C8 -> R 0.13 | K33: R 4.33 | L33: =K33*Escalation!C9 -> R 0.00 | M33: R 4.33
A34: 9 | B34: Substation Grass Cutting | C34: m² | D34: R 0.48 | E34: 0.48 | F34: 0.06 | G34: R 0.54 | H34: =G34*Escalation!C7 -> R 0.02 | I34: R 0.55 | J34: =I34*Escalation!C8 -> R 0.02 | K34: R 0.57 | L34: =K34*Escalation!C9 -> R 0.00 | M34: R 0.57
A35: 10 | B35: Fynbos | C35: m² | D35: R 0.24 | E35: 0.32 | F35: 0.03 | G35: R 0.27 | H35: =G35*Escalation!C8 -> R 0.01 | I35: =G35+H35 -> R 0.28 | J35: =I35*Escalation!C9 -> R 0.00 | K35: =I35+J35 -> R 0.28 | L35: =K35*Escalation!C10 -> R 0.00 | M35: =K35+L35 -> R 0.28
A36: 11 | B36: Indian Ocean costal belt | C36: m² | D36: R 0.23 | E36: 0.31 | F36: 0.03 | G36: R 0.26 | H36: =G36*Escalation!C9 -> R 0.00 | I36: R 0.26 | J36: =I36*Escalation!C10 -> R 0.00 | K36: R 0.26 | L36: =K36*Escalation!C11 -> R 0.00 | M36: R 0.26
A37: 12 | B37: Nama-Karoo | C37: m² | D37: R 0.12 | E37: 0.2 | F37: 0.01 | G37: R 0.13 | H37: =G37*Escalation!C10 -> R 0.00 | I37: R 0.13 | J37: =I37*Escalation!C11 -> R 0.00 | K37: R 0.13 | L37: =K37*Escalation!C12 -> R 0.00 | M37: R 0.13
A38: 13 | B38: Succulent Karoo | C38: m² | D38: R 0.12 | E38: 0.2 | F38: 0.01 | G38: R 0.13 | H38: =G38*Escalation!C11 -> R 0.00 | I38: R 0.13 | J38: =I38*Escalation!C12 -> R 0.00 | K38: R 0.13 | L38: =K38*Escalation!C13 -> R 0.00 | M38: R 0.13
A39: 14 | B39: Pure Grass Cutting(Lines) | C39: m² | D39: R 0.14 | E39: 0.22 | F39: 0.02 | G39: R 0.16 | H39: =G39*Escalation!C12 -> R 0.00 | I39: R 0.16 | J39: =I39*Escalation!C13 -> R 0.00 | K39: R 0.16 | L39: =K39*Escalation!C14 -> R 0.00 | M39: R 0.16
A40: 15 | B40: Pure Grass Removal | C40: m² | D40: R 0.11 | E40: 0.19 | F40: 0.01 | G40: R 0.12 | H40: =G40*Escalation!C13 -> R 0.00 | I40: =G40+H40 -> R 0.12 | J40: =I40*Escalation!C14 -> R 0.00 | K40: =I40+J40 -> R 0.12 | L40: =K40*Escalation!C15 -> R 0.00 | M40: =K40+L40 -> R 0.12
A41: 16 | B41: Substation Weeding | C41: m² | D41: R 0.30 | E41: 0.38 | F41: 0.04 | G41: R 0.34 | H41: =G41*Escalation!C14 -> R 0.00 | I41: R 0.34 | J41: =I41*Escalation!C15 -> R 0.00 | K41: R 0.34 | L41: =K41*Escalation!C16 -> R 0.00 | M41: R 0.34
A42: 17 | B42: Removal of bush clearing | C42: m² | D42: R 0.32 | E42: 0.4 | F42: 0.04 | G42: R 0.36 | H42: =G42*Escalation!C7 -> R 0.01 | I42: =G42+H42 -> R 0.37 | J42: =I42*Escalation!C8 -> R 0.01 | K42: R 0.38 | L42: =K42*Escalation!C9 -> R 0.00 | M42: R 0.38
A43: A3 | B43: Vegetation Biomes (Cycle3)
A44: 1 | B44: Herbicides application( Lines) | C44: m2 | D44: R 0.33 | E44: 3.25 | F44: 0.04 | G44: R 0.37 | H44: =G44*Escalation!C7 -> R 0.01 | I44: =G44+H44 -> R 0.38 | J44: =I44*Escalation!C8 -> R 0.01 | K44: =I44+J44 -> R 0.39 | L44: =K44*Escalation!C9 -> R 0.00 | M44: =K44+L44 -> R 0.39
A45: B | B45: Modifiers
A46: 1 | B46: Single tree Event >400mm | C46: Each | D46: R 2,069.02 | E46: 2008.84 | F46: 248.28 | G46: R 2,317.31 | H46: =G46*Escalation!C7 -> R 69.52 | I46: =G46+H46 -> R 2,386.82 | J46: =I46*Escalation!C8 -> R 71.60 | K46: =I46+J46 -> R 2,458.43 | L46: =K46*Escalation!C9 -> R 0.00 | M46: =K46+L46 -> R 2,458.43
A47: 2 | B47: Call Out for Fallen Tree >400mm (Monday - Sat) R2001.50 x 1.5 | C47: Each | D47: R 3,102.73 | E47: 3500 | F47: 372.33 | G47: R 3,475.06 | H47: =G47*Escalation!C7 -> R 104.25 | I47: R 3,579.31 | J47: =I47*Escalation!C8 -> R 107.38 | K47: R 3,686.69 | L47: =K47*Escalation!C9 -> R 0.00 | M47: R 3,686.69
A48: 3 | B48: Call Out for Fallen Tree >400mm (Sunday + Public Holiday) R2400.50 X 2 | C48: Each | D48: R 4,138.05 | E48: 4500 | F48: 496.57 | G48: R 4,634.61 | H48: =G48*Escalation!C7 -> R 139.04 | I48: R 4,773.65 | J48: =I48*Escalation!C8 -> R 143.21 | K48: R 4,916.86 | L48: =K48*Escalation!C9 -> R 0.00 | M48: R 4,916.86
A49: 4 | B49: Single tree Event 100mm diameter up to 400mm. | C49: Each | D49: R 258.63 | E49: 251.18 | F49: 31.04 | G49: R 289.67 | H49: =G49*Escalation!C7 -> R 8.69 | I49: R 298.36 | J49: =I49*Escalation!C8 -> R 8.95 | K49: R 307.31 | L49: =K49*Escalation!C9 -> R 0.00 | M49: R 307.31
A50: 5 | B50: Call Out for Fallen Tree 100mm diameter up to 400mm (Monday - Sat) | C50: Each | D50: R 3,102.73 | E50: 3012.44 | F50: 372.33 | G50: R 3,475.06 | H50: =G50*Escalation!C7 -> R 104.25 | I50: R 3,579.31 | J50: =I50*Escalation!C8 -> R 107.38 | K50: R 3,686.69 | L50: =K50*Escalation!C9 -> R 0.00 | M50: R 3,686.69
A51: 6 | B51: Call Out for Fallen Tree 100mm diameter up to 400mm (Sunday + Public Holiday) | C51: Each | D51: R 4,138.05 | E51: 4300.5 | F51: 496.57 | G51: R 4,634.61 | H51: =G51*Escalation!C7 -> R 139.04 | I51: R 4,773.65 | J51: =I51*Escalation!C8 -> R 143.21 | K51: R 4,916.86 | L51: =K51*Escalation!C9 -> R 0.00 | M51: R 4,916.86
A52: 7 | B52: Hedges | C52: m² | D52: R 18.65 | E52: 18.19 | F52: 2.24 | G52: =E52+F52 -> R 20.43 | H52: =G52*Escalation!C7 -> R 0.61 | I52: R 21.04 | J52: =I52*Escalation!C8 -> R 0.63 | K52: R 21.67 | L52: =K52*Escalation!C9 -> R 0.00 | M52: R 21.67
A53: 8 | B53: Fruit Trees (orchards) Trimming | C53: m² | D53: R 1.37 | E53: 1.41 | F53: 0.16 | G53: R 1.57 | H53: =G53*Escalation!C7 -> R 0.05 | I53: R 1.62 | J53: =I53*Escalation!C8 -> R 0.05 | K53: R 1.67 | L53: =K53*Escalation!C9 -> R 0.00 | M53: R 1.67
A54: 9 | B54: Trimming trees in Town & Wind Breaks | C54: Each | D54: R 229.71 | E54: 223.08 | F54: 27.57 | G54: R 250.65 | H54: =G54*Escalation!C7 -> R 7.52 | I54: R 258.16 | J54: =I54*Escalation!C8 -> R 7.74 | K54: R 265.91 | L54: =K54*Escalation!C9 -> R 0.00 | M54: R 265.91
A55: 10 | B55: Invader species Modifier | C55: m² | D55: R 0.32 | E55: 0.42 | F55: =D55*0.12 -> 0.04 | G55: R 0.46 | H55: =G55*Escalation!C7 -> R 0.01 | I55: R 0.47 | J55: =I55*Escalation!C8 -> R 0.01 | K55: R 0.49 | L55: =K55*Escalation!C9 -> R 0.00 | M55: R 0.49
A56: 11 | B56: Standing Time Per Hour per member after the first hour waiting for Eskom | C56: Hour | D56: R 94.16 | E56: 94.22 | F56: 11.30 | G56: R 105.52
A57: 12 | B57: Daily Rate. Used where less than 235,000 m2 of bushclearing is issued (approximatel 12 spans). Also used for isolated areas. | C57: day | D57: R 9,000.00 | E57: R 9,000.00 | F57: =D57*0.12 -> 1,080.00 | G57: =E57+F57 -> R 10,080.00
A58: C | B58: Vehicles
A59: C1 | B59: 8Ton Truck (for Bush removal transportation to legal disposal site) | C59: Km | D59: R 15.00 | E59: 15 | F59: 1.80 | G59: R 16.80
A60: C2 | B60: Woodpicker or Woodchipper (for Bush removal/chipping) | C60: Hour | D60: R 180.00 | E60: 180 | F60: 21.60 | G60: R 201.60
A61: D | B61: Safety and Environmental
A62: D1 | B62: Occcupational Health and Safety Requirements (32-136) -Inclusive of COVID-19 | C62: 3% | E62: 3 % sum of invoice
A63: D2 | B63: Personal Protective Equipment appropriate to the task to be performed shall be provided by the Principal Contractor. | C63: 1% | E63: 1 % sum of invoice

Sheet Escalation (hidden)
B1: ESCALATION
B2: Seifsa Table D CPI
B3: COMMODITY
B4: Waste Management
B5: 2020-11-01 | C5: 155
B6: 2020-07-01 | C6: 169.6
C7: 3%
C8: 3%

Sheet BOQ (hidden)
B2: PROPOSED RATES
A3: Part 1: Standard Activity Schedule for Vegetation Management Services
A5: Vegetation Management MOU | D5: 2020/21 RATES | E5: CPI Table D SEIFSA | F5: Projected @ 3%to 2021/22 | G5: CPI Table D SEIFSA | H5: Projected @ 3% to 2022/23 | I5: CPI Table D SEIFSA | J5: Projected @ 3% to 2023/24
A6: No | B6: Description | C6: Unit | D6: ESKOM | E6: Escalation | F6: New Rates | G6: Escalation | H6: New Rates | I6: Escalation | J6: New Rates
A7: A1 | B7: Vegetation Biomes (Cycle1)
A8: 1 | B8: Albany Thicket | C8: m² | D8: =0.51 -> R 0.51 | E8: =D8*Escalation!C7 -> R 0.02 | F8: =D8+E8 -> R 0.53 | G8: =F8*Escalation!C8 -> R 0.02 | H8: =F8+G8 -> R 0.54 | I8: =H8*Escalation!C9 -> R 0.00 | J8: =H8+I8 -> R 0.54
A9: 2 | B9: Desert | C9: m² | D9: R 0.63 | E9: =D9*Escalation!C7 -> R 0.02 | F9: R 0.65 | G9: =F9*Escalation!C8 -> R 0.02 | H9: =F9+G9 -> R 0.67 | I9: =H9*Escalation!C9 -> R 0.00 | J9: =H9+I9 -> R 0.67
A10: 3 | B10: Forest | C10: m² | D10: R 0.66 | E10: =D10*Escalation!C7 -> R 0.02 | F10: R 0.68 | G10: =F10*Escalation!C8 -> R 0.02 | H10: R 0.70 | I10: =H10*Escalation!C9 -> R 0.00 | J10: R 0.70
A11: 4 | B11: Grassland | C11: m² | D11: R 0.19 | E11: =D11*Escalation!C7 -> R 0.01 | F11: R 0.20 | G11: =F11*Escalation!C8 -> R 0.01 | H11: =F11+G11 -> R 0.20 | I11: =H11*Escalation!C9 -> R 0.00 | J11: R 0.20
A12: 5 | B12: Savanna | C12: m² | D12: R 0.51 | E12: =D12*Escalation!C7 -> R 0.02 | F12: R 0.53 | G12: =F12*Escalation!C8 -> R 0.02 | H12: R 0.54 | I12: =H12*Escalation!C9 -> R 0.00 | J12: R 0.54
A13: 6 | B13: Reeds Cut and stacking | C13: m² | D13: R 1.27 | E13: =D13*Escalation!C7 -> R 0.04 | F13: R 1.31 | G13: =F13*Escalation!C8 -> R 0.04 | H13: R 1.35 | I13: =H13*Escalation!C9 -> R 0.00 | J13: R 1.35
A14: 7 | B14: Reeds Cut and removal | C14: m² | D14: R 3.20 | E14: =D14*Escalation!C7 -> R 0.10 | F14: R 3.30 | G14: =F14*Escalation!C8 -> R 0.10 | H14: R 3.39 | I14: =H14*Escalation!C9 -> R 0.00 | J14: R 3.39
A15: 8 | B15: Herbicide Application( Substations only) | C15: m² | D15: R 1.25 | E15: =D15*Escalation!C7 -> R 0.04 | F15: R 1.29 | G15: =F15*Escalation!C8 -> R 0.04 | H15: R 1.33 | I15: =H15*Escalation!C9 -> R 0.00 | J15: R 1.33
A16: 9 | B16: Substation Grass Cutting | C16: m² | D16: R 0.48 | E16: =D16*Escalation!C7 -> R 0.01 | F16: R 0.49 | G16: =F16*Escalation!C8 -> R 0.01 | H16: R 0.51 | I16: =H16*Escalation!C9 -> R 0.00 | J16: R 0.51
A17: 10 | B17: Fynbos | C17: m² | D17: R 0.32 | E17: =D17*Escalation!C7 -> R 0.01 | F17: R 0.33 | G17: =F17*Escalation!C8 -> R 0.01 | H17: R 0.34 | I17: =H17*Escalation!C9 -> R 0.00 | J17: R 0.34
A18: 11 | B18: Indian Ocean costal belt | C18: m² | D18: R 0.32 | E18: =D18*Escalation!C7 -> R 0.01 | F18: R 0.33 | G18: =F18*Escalation!C8 -> R 0.01 | H18: R 0.34 | I18: =H18*Escalation!C9 -> R 0.00 | J18: R 0.34
A19: 12 | B19: Nama-Karoo | C19: m² | D19: R 0.23 | E19: =D19*Escalation!C7 -> R 0.01 | F19: R 0.24 | G19: =F19*Escalation!C8 -> R 0.01 | H19: R 0.24 | I19: =H19*Escalation!C9 -> R 0.00 | J19: R 0.24
A20: 13 | B20: Succulent Karoo | C20: m² | D20: R 0.23 | E20: =D20*Escalation!C7 -> R 0.01 | F20: R 0.24 | G20: =F20*Escalation!C8 -> R 0.01 | H20: R 0.24 | I20: =H20*Escalation!C9 -> R 0.00 | J20: R 0.24
A21: 14 | B21: Pure Grass Removal | C21: m2 | D21: R 0.11 | E21: =D21*Escalation!C8 -> R 0.00 | F21: =D21+E21 -> R 0.11 | G21: =F21*Escalation!C8 -> R 0.00 | H21: =F21+G21 -> R 0.12 | I21: =H21*Escalation!C9 -> R 0.00 | J21: =H21+I21 -> R 0.12
A22: 15 | B22: Substation Weeding | C22: m2 | D22: R 0.30 | E22: =D22*Escalation!C9 -> R 0.00 | F22: R 0.30 | G22: =F22*Escalation!C8 -> R 0.01 | H22: R 0.31 | I22: =H22*Escalation!C9 -> R 0.00 | J22: R 0.31
A23: 16 | B23: Reeds cut and removal | C23: m2 | D23: R 2.60 | E23: =D23*Escalation!C10 -> R 0.00 | F23: R 2.60 | G23: =F23*Escalation!C8 -> R 0.08 | H23: R 2.68 | I23: =H23*Escalation!C9 -> R 0.00 | J23: R 2.68
A24: A2 | B24: Vegetation Biomes (Cycle2)
A25: 1 | B25: Albany Thicket | C25: m² | D25: R 0.32 | E25: =D25*Escalation!C7 -> R 0.01 | F25: =D25+E25 -> R 0.33 | G25: =F25*Escalation!C8 -> R 0.01 | H25: =F25+G25 -> R 0.34 | I25: =H25*Escalation!C9 -> R 0.00 | J25: =H25+I25 -> R 0.34
A26: 2 | B26: Desert | C26: m² | D26: R 0.12 | E26: =D26*Escalation!C7 -> R 0.00 | F26: R 0.12 | G26: =F26*Escalation!C8 -> R 0.00 | H26: R 0.13 | I26: =H26*Escalation!C9 -> R 0.00 | J26: R 0.13
A27: 3 | B27: Forest | C27: m² | D27: R 0.45 | E27: =D27*Escalation!C7 -> R 0.01 | F27: R 0.46 | G27: =F27*Escalation!C8 -> R 0.01 | H27: R 0.48 | I27: =H27*Escalation!C9 -> R 0.00 | J27: R 0.48
A28: 4 | B28: Grassland | C28: m² | D28: R 0.12 | E28: =D28*Escalation!C7 -> R 0.00 | F28: R 0.12 | G28: =F28*Escalation!C8 -> R 0.00 | H28: R 0.13 | I28: =H28*Escalation!C9 -> R 0.00 | J28: R 0.13
A29: 5 | B29: Savanna | C29: m² | D29: R 0.26 | E29: =D29*Escalation!C7 -> R 0.01 | F29: R 0.27 | G29: =F29*Escalation!C8 -> R 0.01 | H29: R 0.28 | I29: =H29*Escalation!C9 -> R 0.00 | J29: R 0.28
A30: 6 | B30: Reeds Cut and stacking | C30: m² | D30: R 0.66 | E30: =D30*Escalation!C7 -> R 0.02 | F30: R 0.68 | G30: =F30*Escalation!C8 -> R 0.02 | H30: R 0.70 | I30: =H30*Escalation!C9 -> R 0.00 | J30: R 0.70
A31: 7 | B31: Reeds Cut and removal | C31: m² | D31: R 1.25 | E31: =D31*Escalation!C7 -> R 0.04 | F31: R 1.29 | G31: =F31*Escalation!C8 -> R 0.04 | H31: R 1.33 | I31: =H31*Escalation!C9 -> R 0.00 | J31: R 1.33
A32: 8 | B32: Herbicide Application( Substations only) | C32: m² | D32: R 1.25 | E32: =D32*Escalation!C7 -> R 0.04 | F32: R 1.29 | G32: =F32*Escalation!C8 -> R 0.04 | H32: R 1.33 | I32: =H32*Escalation!C9 -> R 0.00 | J32: R 1.33
A33: 9 | B33: Substation Grass Cutting | C33: m² | D33: R 0.48 | E33: =D33*Escalation!C7 -> R 0.01 | F33: R 0.49 | G33: =F33*Escalation!C8 -> R 0.01 | H33: R 0.51 | I33: =H33*Escalation!C9 -> R 0.00 | J33: R 0.51
A34: 10 | B34: Pure Grass Removal | C34: m² | D34: R 0.11 | E34: =D34*Escalation!C9 -> R 0.00 | F34: =D34+E34 -> R 0.11 | G34: =F34*Escalation!C8 -> R 0.00 | H34: R 0.11 | I34: =H34*Escalation!C9 -> R 0.00 | J34: R 0.11
A35: 11 | B35: Substation Weeding | C35: m² | D35: R 0.30 | E35: =D35*Escalation!C9 -> R 0.00 | F35: R 0.30 | G35: =F35*Escalation!C8 -> R 0.01 | H35: R 0.31 | I35: =H35*Escalation!C9 -> R 0.00 | J35: R 0.31
A36: 12 | B36: Fynbos | C36: m² | D36: R 0.24 | E36: =D36*Escalation!C11 -> R 0.00 | F36: R 0.24 | G36: =F36*Escalation!C8 -> R 0.01 | H36: R 0.25 | I36: =H36*Escalation!C9 -> R 0.00 | J36: R 0.25
A37: 13 | B37: Indian Ocean costal belt | C37: m² | D37: R 0.23 | E37: =D37*Escalation!C7 -> R 0.01 | F37: =D37+E37 -> R 0.24 | G37: =F37*Escalation!C8 -> R 0.01 | H37: R 0.24 | I37: =H37*Escalation!C9 -> R 0.00 | J37: R 0.24
A38: 14 | B38: Nama-Karoo | C38: m² | D38: R 0.12 | E38: =D38*Escalation!C7 -> R 0.00 | F38: =D38+E38 -> R 0.12 | G38: =F38*Escalation!C8 -> R 0.00 | H38: R 0.13 | I38: =H38*Escalation!C9 -> R 0.00 | J38: R 0.13
A39: 15 | B39: Succulent Karoo | C39: m² | D39: R 0.12 | E39: =D39*Escalation!C7 -> R 0.00 | F39: =D39+E39 -> R 0.12 | G39: =F39*Escalation!C8 -> R 0.00 | H39: R 0.13 | I39: =H39*Escalation!C9 -> R 0.00 | J39: R 0.13
A40: 16 | B40: Controlled burning | C40: m² | D40: R 0.32 | E40: =D40*Escalation!C7 -> R 0.01 | F40: =D40+E40 -> R 0.33 | G40: =F40*Escalation!C8 -> R 0.01 | H40: R 0.34 | I40: =H40*Escalation!C9 -> R 0.00 | J40: R 0.34
A41: A3 | B41: Vegetation Biomes (Cycle3)
A42: 1 | B42: Herbicides application( Lines) | C42: m2 | D42: R 0.33 | E42: =D42*Escalation!C7 -> R 0.01 | F42: =D42+E42 -> R 0.34 | G42: =F42*Escalation!C8 -> R 0.01 | H42: =F42+G42 -> R 0.35 | I42: =H42*Escalation!C9 -> R 0.00 | J42: =H42+I42 -> R 0.35
A43: B | B43: Modifiers
A44: 1 | B44: Single tree Event >400mm | C44: Each | D44: R 2,008.76 | E44: =D44*Escalation!C7 -> R 60.26 | F44: =D44+E44 -> R 2,069.02 | G44: =F44*Escalation!C8 -> R 62.07 | H44: =F44+G44 -> R 2,131.09 | I44: =H44*Escalation!C9 -> R 0.00 | J44: =H44+I44 -> R 2,131.09
A45: 2 | B45: Call Out for Fallen Tree >400mm (Monday - Sat) R1931.50 x 1.5 | C45: Each | D45: R 3,012.36 | E45: =D45*Escalation!C7 -> R 90.37 | F45: R 3,102.73 | G45: =F45*Escalation!C8 -> R 93.08 | H45: R 3,195.81 | I45: =H45*Escalation!C9 -> R 0.00 | J45: R 3,195.81
A46: 3 | B46: Call Out for Fallen Tree >400mm (Sunday + Public Holiday) R1931.50 X 2 | C46: Each | D46: R 4,017.52 | E46: =D46*Escalation!C7 -> R 120.53 | F46: R 4,138.05 | G46: =F46*Escalation!C8 -> R 124.14 | H46: R 4,262.19 | I46: =H46*Escalation!C9 -> R 0.00 | J46: R 4,262.19
A47: 4 | B47: Single tree Event <400mm,100mm in diameter | C47: Each | D47: R 251.10 | E47: =D47*Escalation!C7 -> R 7.53 | F47: R 258.63 | G47: =F47*Escalation!C8 -> R 7.76 | H47: R 266.39 | I47: =H47*Escalation!C9 -> R 0.00 | J47: R 266.39
A48: 5 | B48: Call Out for Fallen Tree <400mm (Monday - Sat) | C48: Each | D48: R 3,012.36 | E48: =D48*Escalation!C7 -> R 90.37 | F48: R 3,102.73 | G48: =F48*Escalation!C8 -> R 93.08 | H48: R 3,195.81 | I48: =H48*Escalation!C9 -> R 0.00 | J48: R 3,195.81
A49: 6 | B49: Call Out for Fallen Tree <400mm (Sunday + Public Holiday) | C49: Each | D49: R 4,017.52 | E49: =D49*Escalation!C7 -> R 120.53 | F49: R 4,138.05 | G49: =F49*Escalation!C8 -> R 124.14 | H49: R 4,262.19 | I49: =H49*Escalation!C9 -> R 0.00 | J49: R 4,262.19
A50: 7 | B50: Hedges | C50: m² | D50: R 18.11 | E50: =D50*Escalation!C7 -> R 0.54 | F50: R 18.65 | G50: =F50*Escalation!C8 -> R 0.56 | H50: R 19.21 | I50: =H50*Escalation!C9 -> R 0.00 | J50: R 19.21
A51: 8 | B51: Fruit Trees (orchards) Trimming | C51: m² | D51: R 1.33 | E51: =D51*Escalation!C7 -> R 0.04 | F51: R 1.37 | G51: =F51*Escalation!C8 -> R 0.04 | H51: R 1.41 | I51: =H51*Escalation!C9 -> R 0.00 | J51: R 1.41
A52: 9 | B52: Trimming trees in Town & Wind Breaks | C52: Each | D52: R 223.02 | E52: =D52*Escalation!C7 -> R 6.69 | F52: R 229.71 | G52: =F52*Escalation!C8 -> R 6.89 | H52: R 236.60 | I52: =H52*Escalation!C9 -> R 0.00 | J52: R 236.60
A53: 10 | B53: Invader species Modifier | C53: m² | D53: R 0.34 | E53: =D53*Escalation!C7 -> R 0.01 | F53: R 0.35 | G53: =F53*Escalation!C8 -> R 0.01 | H53: R 0.36 | I53: =H53*Escalation!C9 -> R 0.00 | J53: R 0.36
A54: 11 | B54: Standing Time Per Hour per member after the first hour waiting for Eskom | C54: Hour | D54: R 94.16
A55: C | B55: Occcupational Health and Safety Requirements (32-136) -Inclusive of COVID-19 | C55: 3% | D55: R0.03.5 % sum of invoice
A56: C1 | B56: Personal Protective Equipment appropriate to the task to be performed shall be provided by the Principal Contractor. -Inclusive of COVID-19 | C56: 1% | D56: R0.01 % sum of invoice

Sheet Sheet2 (hidden)

Sheet Sheet3 (hidden)
